bitfinex-derivatives/quotes_SOLF0:USTF0_20250830
["timestamp","ask_amount","ask_price","bid_price","bid_amount"]
[1756543646643,0.12,203.98,203.85,7.22]
[1756543646835,0.12,203.98,203.85,11.6344]
[1756543647036,0.12,203.98,203.86,7.22]
[1756543647245,0.12,203.98,203.89,7.25199073]
[1756543647641,4.55829337,203.95,203.89,0.03199073]
[1756543647942,0.12,203.93,203.89,0.03199073]
[1756543648136,4.55829337,203.95,203.89,0.03199073]
[1756543648340,0.12,203.93,203.89,0.03199073]
[1756543648535,4.55829337,203.95,203.89,0.03199073]
[1756543648740,4.55829337,203.92,203.89,0.03199073]
[1756543649139,0.12,203.91,203.89,0.03199073]
[1756543649343,4.55829337,203.92,203.89,0.03199073]
[1756543649543,0.12,203.9,203.89,0.03199073]
[1756543650846,2.93264976,203.9,203.69,100.37829337]
[1756543651042,4.55829337,203.85,203.7,7.22]
[1756543652243,2.43336733,203.84,203.7,7.22]
[1756543652541,0.12,203.84,203.7,7.22]
[1756543652738,0.12,203.8,203.7,7.22]
[1756543652941,0.12,203.78,203.64,7.22]
[1756543653142,4.55829337,203.77,203.64,7.22]
[1756543653440,14.81829337,203.77,203.64,7.22]
[1756543653645,2.55350233,203.76,203.64,7.22]
[1756543653840,0.12,203.76,203.64,7.22]
[1756543654042,2.43343235,203.75,203.64,7.22]
[1756543654243,0.12,203.76,203.64,7.22]
[1756543654446,2.43349998,203.75,203.64,7.22]
[1756543654646,4.55829337,203.74,203.64,7.22]
[1756543654848,0.12,203.73,203.64,7.22]
[1756543658548,4.55829337,203.7,203.52,7.74]
[1756543658748,4.55829337,203.7,203.55,7.74]
[1756543658950,4.55829337,203.7,203.57,7.74]
[1756543660442,2.55992254,203.69,203.57,7.74]
[1756543660653,5.43791049,203.84,203.58,7.74]
[1756543660842,4.55829337,203.74,203.58,7.74]
[1756543661044,2.43079876,203.73,203.58,7.74]
[1756543661243,4.68829337,203.74,203.58,7.74]
[1756543661748,2.42987955,203.73,203.58,7.74]
[1756543661948,4.68829337,203.74,203.58,7.74]
[1756543662150,4.55829337,203.71,203.58,7.74]
[1756543664150,13.69,203.72,203.58,7.74]
[1756543664847,0.13,203.72,203.58,7.74]
[1756543665053,0.13,203.72,203.6,7.74]
[1756543665251,4.55829337,203.73,203.6,7.74]
[1756543665552,0.13,203.76,203.64,7.74]
[1756543666847,0.13,203.81,203.66,7.74]
[1756543667048,4.68829337,203.81,203.66,7.74]
[1756543667350,334.36829337,203.85,203.69,7.74]
[1756543667542,2.42911864,203.84,203.69,7.74]
[1756543667745,2.42911864,203.83,203.69,7.74]
[1756543667943,334.36829337,203.85,203.69,7.74]
[1756543668154,2.42886289,203.84,203.7,7.74]
[1756543668348,334.36829337,203.85,203.7,7.74]
[1756543668550,2.42899269,203.84,203.7,7.74]
[1756543668749,334.36829337,203.85,203.7,7.74]
[1756543668945,2.42899914,203.84,203.7,7.74]
[1756543669145,334.36829337,203.85,203.7,7.74]
[1756543669350,2.42885294,203.84,203.7,7.74]
[1756543669546,2.42885294,203.83,203.7,7.74]
[1756543669754,334.36829337,203.85,203.7,7.74]
[1756543669949,0.13,203.81,203.7,7.74]
[1756543670755,0.13,203.84,203.7,7.74]
[1756543671157,2.42893249,203.83,203.7,7.74]
[1756543671354,0.13,203.84,203.7,7.74]
[1756543673661,0.13,203.84,203.7,4.4176]
[1756543673862,0.13,203.84,203.71,7.74]
[1756543674456,329.68,203.85,203.73,7.74]
[1756543674760,134.40829337,203.88,203.73,7.74]
[1756543674959,2.43252473,203.87,203.73,7.74]
[1756543675159,2.43361193,203.86,203.73,7.74]
[1756543675461,4.68829337,203.88,203.75,7.74]
[1756543675661,0.13,203.85,203.75,7.74]
[1756543675957,2.4332145,203.84,203.75,7.74]
[1756543676161,0.13,203.85,203.75,7.74]
[1756543676965,2.4342314,203.84,203.75,7.74]
[1756543677165,2.43781465,203.83,203.75,7.74]
[1756543677361,0.13,203.85,203.75,7.74]
[1756543677554,2.43781554,203.84,203.75,7.74]
[1756543677760,2.43781554,203.83,203.75,7.74]
[1756543677966,0.13,203.85,203.75,7.74]
[1756543678164,5.89356234,203.84,203.75,7.74]
[1756543678462,2.4377924,203.83,203.75,7.74]
[1756543678660,0.13,203.85,203.75,7.74]
[1756543678856,2.43923514,203.84,203.75,7.74]
[1756543679055,2.43923514,203.83,203.75,7.74]
[1756543679254,0.13,203.85,203.75,7.74]
[1756543679456,2.44034508,203.84,203.75,7.74]
[1756543679657,2.44034508,203.83,203.75,7.74]
[1756543679858,0.13,203.85,203.75,7.74]
[1756543680060,2.44033293,203.84,203.75,7.74]
[1756543680360,2.44033293,203.83,203.75,7.74]
[1756543680561,0.13,203.85,203.75,7.74]
[1756543680758,5.89970539,203.84,203.75,7.74]
[1756543680955,2.4411262,203.83,203.75,7.74]
[1756543681153,2.4411262,203.82,203.75,7.74]
[1756543681354,0.13,203.85,203.75,7.74]
[1756543681559,3.45922135,203.84,203.75,7.74]
[1756543681761,5.90074642,203.83,203.75,7.74]
[1756543681956,34.85098588,203.82,203.67,7.74]
[1756543682158,0.13,203.8,203.67,7.74]
[1756543682363,4.55829337,203.78,203.67,7.74]
[1756543682562,4.55829337,203.75,203.67,7.74]
[1756543682762,2.44152425,203.74,203.67,7.74]
[1756543682964,4.55829337,203.75,203.67,7.74]
[1756543683167,4.68829337,203.78,203.67,7.74]
[1756543683367,5.90369547,203.77,203.67,7.74]
[1756543683662,4.55829337,203.81,203.67,7.74]
[1756543683870,5.90426492,203.8,203.67,7.74]
[1756543684167,2.44284805,203.79,203.67,7.74]
[1756543684367,2.44284805,203.78,203.67,7.74]
[1756543684570,4.55829337,203.81,203.67,7.74]
[1756543684868,5.90672071,203.8,203.7,7.74]
[1756543685066,2.44387089,203.79,203.7,7.74]
[1756543685259,4.55829337,203.81,203.7,7.74]
[1756543685458,2.44498861,203.8,203.7,7.74]
[1756543685666,0.13,203.82,203.7,7.74]
[1756543685867,5.9092588,203.81,203.7,7.74]
[1756543686066,2.44501409,203.8,203.7,7.74]
[1756543686268,0.13,203.82,203.7,7.74]
[1756543686469,5.91018723,203.81,203.7,7.74]
[1756543686670,2.44539833,203.8,203.7,7.74]
[1756543686870,0.13,203.82,203.7,7.74]
[1756543687071,5.91018649,203.81,203.7,7.74]
[1756543687366,2.445398,203.8,203.7,7.74]
[1756543687571,2.445398,203.79,203.7,7.74]
[1756543687771,0.13,203.82,203.7,7.74]
[1756543687970,5.91063014,203.81,203.7,7.74]
[1756543688166,2.44556769,203.8,203.7,7.74]
[1756543688366,2.44556769,203.79,203.7,7.74]
[1756543688564,4.55829337,203.84,203.7,7.74]
[1756543688767,0.12,203.8,203.7,7.74]
[1756543689073,5.91032267,203.79,203.7,7.74]
[1756543689276,10.46861604,203.78,203.7,7.74]
[1756543689470,5.91032267,203.77,203.7,7.74]
[1756543689775,2.44543205,203.76,203.7,7.74]
[1756543689972,2.44543205,203.75,203.64,7.28]
[1756543690177,4.55829337,203.78,203.64,7.28]
[1756543690377,5.91311249,203.77,203.64,7.28]
[1756543690578,2.44642341,203.76,203.64,7.28]
[1756543690779,2.44642341,203.75,203.64,7.28]
[1756543690979,4.55829337,203.78,203.64,7.28]
[1756543691179,5.9112009,203.77,203.64,7.28]
[1756543691379,5.9112009,203.76,203.64,7.28]
[1756543691577,2.44564572,203.75,203.64,7.28]
[1756543691777,4.55829337,203.78,203.66,7.28]
[1756543691980,5.91374213,203.77,203.66,7.28]
[1756543692375,5.91873573,203.76,203.66,7.28]
[1756543692582,2.44876921,203.75,203.66,7.28]
[1756543692779,2.44876921,203.74,203.66,7.28]
[1756543692975,4.67829337,203.78,203.66,7.28]
[1756543693279,5.91927166,203.77,203.66,7.28]
[1756543693582,5.91927166,203.76,203.66,7.28]
[1756543693782,2.4489916,203.75,203.66,7.28]
[1756543693981,0.12,203.78,203.66,7.28]
[1756543694176,5.92438918,203.77,203.66,7.28]
[1756543694482,2.45112793,203.76,203.66,7.28]
[1756543694680,2.45112793,203.75,203.66,7.28]
[1756543694882,2.45112793,203.74,203.66,7.28]
[1756543695175,0.12,203.78,203.66,7.28]
[1756543695381,5.93012657,203.77,203.66,7.28]
[1756543695581,5.93012657,203.76,203.66,7.28]
[1756543695782,2.45340805,203.75,203.66,7.28]
[1756543695982,2.45340805,203.74,203.66,7.28]
[1756543696178,0.12,203.78,203.66,7.28]
[1756543696379,5.93106791,203.77,203.66,7.28]
[1756543696581,5.93106791,203.76,203.66,7.28]
[1756543696782,2.45389171,203.75,203.66,7.28]
[1756543696983,2.45389171,203.74,203.66,7.28]
[1756543697179,0.12,203.78,203.66,7.28]
[1756543697380,5.93163374,203.77,203.66,7.28]
[1756543697580,5.93163374,203.76,203.66,7.28]
[1756543697780,2.45415816,203.75,203.66,7.28]
[1756543697981,2.45415816,203.74,203.66,7.28]
[1756543698184,0.12,203.78,203.66,7.28]
[1756543698485,5.93312017,203.77,203.66,7.28]
[1756543698682,5.93312017,203.76,203.66,7.28]
[1756543698882,2.45472177,203.75,203.66,7.28]
[1756543699183,0.12,203.78,203.66,7.28]
[1756543699392,5.9330596,203.77,203.66,7.28]
[1756543699585,5.9330596,203.76,203.66,7.28]
[1756543699783,2.454722,203.75,203.66,7.28]
[1756543699984,2.454722,203.74,203.66,7.28]
[1756543700179,0.12,203.78,203.66,7.28]
[1756543700377,5.9346879,203.77,203.66,7.28]
[1756543700577,5.9346879,203.76,203.66,7.28]
[1756543700782,2.45539575,203.75,203.66,7.28]
[1756543701086,2.45539575,203.74,203.66,7.28]
[1756543701289,2.45539575,203.73,203.66,7.28]
[1756543701483,2.86266928,203.77,203.66,7.28]
[1756543701788,5.93635738,203.76,203.66,7.28]
[1756543701987,2.45605294,203.75,203.66,7.28]
[1756543702189,2.45605294,203.74,203.66,7.28]
[1756543702487,2.45605294,203.73,203.66,7.28]
[1756543702687,2.86266928,203.77,203.66,7.28]
[1756543702889,5.93746987,203.76,203.66,7.28]
[1756543703089,2.45651321,203.75,203.66,7.28]
[1756543703290,2.45651321,203.74,203.66,7.28]
[1756543703485,2.45651321,203.73,203.66,7.28]
[1756543703689,2.86266928,203.77,203.66,7.28]
[1756543703888,2.45657623,203.76,203.66,7.28]
[1756543704086,2.45657623,203.75,203.66,7.28]
[1756543704286,2.45657623,203.74,203.66,7.28]
[1756543704486,2.45657623,203.73,203.66,7.28]
[1756543704687,2.86266928,203.77,203.66,7.28]
[1756543704887,2.45718574,203.76,203.66,7.28]
[1756543705088,2.45718574,203.75,203.66,7.28]
[1756543705385,2.45718574,203.74,203.66,7.28]
[1756543705593,2.45718574,203.73,203.66,7.28]
[1756543705786,2.86266928,203.77,203.66,7.28]
[1756543705985,2.45784291,203.76,203.66,7.28]
[1756543706285,2.45784291,203.75,203.66,7.28]
[1756543706590,2.45784291,203.74,203.66,7.28]
[1756543706889,2.45784291,203.73,203.66,7.28]
[1756543707090,2.86266928,203.77,203.66,7.28]
[1756543707287,0.15,203.82,203.72,2.86266928]
[1756543707593,2.45971068,203.81,203.73,7.28]
[1756543707791,2.45971068,203.8,203.73,7.28]
[1756543708094,2.45971068,203.79,203.73,7.28]
[1756543708293,2.45971068,203.78,203.73,7.28]
[1756543708594,2.45971068,203.77,203.72,2.86266928]
[1756543708790,0.15,203.82,203.73,7.28]
[1756543708991,2.45999483,203.81,203.73,7.28]
[1756543709189,2.45999483,203.8,203.73,7.28]
[1756543709385,2.45999483,203.79,203.73,7.28]
[1756543709688,2.86266928,203.77,203.67,7.28]
[1756543709889,2.45999483,203.76,203.67,7.28]
[1756543710094,2.45999483,203.75,203.67,7.28]
[1756543710290,2.86266928,203.77,203.67,7.28]
[1756543710291,2.45999483,203.74,203.67,7.28]
[1756543710495,2.45999483,203.73,203.67,7.28]
[1756543710696,2.45999483,203.72,203.67,7.28]
[1756543710897,2.86266928,203.77,203.67,7.28]
[1756543711097,2.46220022,203.76,203.67,7.28]
[1756543711290,2.46220022,203.75,203.67,7.28]
[1756543711593,2.46220022,203.74,203.67,7.28]
[1756543711790,2.46220022,203.73,203.67,7.28]
[1756543711996,3.01266928,203.78,203.68,7.28]
[1756543712196,2.46249846,203.77,203.68,7.28]
[1756543712495,2.46249846,203.76,203.68,7.28]
[1756543712693,2.46249846,203.75,203.68,7.28]
[1756543712994,2.46249846,203.74,203.68,7.28]
[1756543713295,3.01266928,203.78,203.68,7.28]
[1756543713498,2.46255921,203.77,203.68,7.28]
[1756543713795,2.46255921,203.76,203.68,7.28]
[1756543714093,2.46255921,203.75,203.68,7.28]
[1756543714285,2.46255921,203.74,203.68,7.28]
[1756543714485,2.46255921,203.73,203.67,4.4184]
[1756543714690,2.46255921,203.72,203.68,7.28]
[1756543714888,3.01266928,203.78,203.68,7.28]
[1756543715095,2.46245956,203.77,203.68,7.28]
[1756543715294,2.46245956,203.76,203.68,7.28]
[1756543715486,2.46245956,203.75,203.68,7.28]
[1756543715684,2.46245956,203.74,203.68,7.28]
[1756543715885,2.46245956,203.73,203.67,4.4184]
[1756543716186,3.01266928,203.78,203.68,7.28]
[1756543716386,2.46264177,203.77,203.68,7.28]
[1756543716585,2.46264177,203.76,203.68,7.28]
[1756543716785,2.46264177,203.75,203.68,7.28]
[1756543716994,2.46264177,203.74,203.68,7.28]
[1756543717297,2.46264177,203.73,203.67,4.4184]
[1756543717495,3.01266928,203.78,203.68,7.82]
[1756543717796,2.46284392,203.77,203.68,7.82]
[1756543717995,2.46284392,203.76,203.68,7.82]
[1756543718291,2.46284392,203.75,203.68,7.82]
[1756543718491,2.58284392,203.74,203.63,5.32942552]
[1756543718795,2.46284392,203.73,203.64,7.82]
[1756543718995,2.46284392,203.72,203.64,7.82]
[1756543719197,2.46284392,203.71,203.64,7.82]
[1756543719398,2.46284392,203.7,203.64,7.82]
[1756543719697,2.46284392,203.69,203.63,12.2393]
[1756543719897,0.12,203.74,203.64,7.82]
[1756543720098,2.4624044,203.73,203.64,7.82]
[1756543720400,2.46280478,203.72,203.64,7.82]
[1756543720596,2.46280478,203.71,203.64,7.82]
[1756543720898,0.12,203.72,203.64,7.82]
[1756543720899,2.46280478,203.7,203.64,7.82]
[1756543721096,2.46280478,203.69,203.63,4.4193]
[1756543721398,2.46280478,203.68,203.63,4.4193]
[1756543721598,0.12,203.72,203.64,7.82]
[1756543721798,2.4629524,203.71,203.64,7.82]
[1756543721993,2.4629524,203.7,203.64,7.82]
[1756543722196,2.4629524,203.69,203.62,10.68266928]
[1756543722398,2.4629524,203.68,203.62,2.86266928]
[1756543722697,2.46288009,203.67,203.62,7.82]
[1756543722894,2.46258778,203.66,203.62,7.82]
[1756543723100,2.46258778,203.65,203.62,7.82]
[1756543723301,0.12,203.65,203.58,7.82]
[1756543723502,2.46183583,203.64,203.58,7.82]
[1756543723702,0.12,203.65,203.58,7.82]
[1756543724103,2.46174884,203.64,203.58,7.82]
[1756543724399,0.12,203.65,203.58,7.82]
[1756543724595,2.46108862,203.64,203.58,7.82]
[1756543724802,2.46082771,203.63,203.56,7.82]
[1756543725005,2.46082771,203.62,203.56,7.82]
[1756543725206,0.12,203.65,203.56,7.82]
[1756543725401,2.45908601,203.64,203.56,7.82]
[1756543725602,2.45908601,203.63,203.56,7.82]
[1756543725899,2.45908601,203.62,203.56,7.82]
[1756543726102,0.12,203.65,203.56,7.82]
[1756543726300,2.45908568,203.64,203.56,7.82]
[1756543726493,2.45908568,203.63,203.56,7.82]
[1756543726696,0.12,203.69,203.59,7.82]
[1756543726900,2.45880648,203.68,203.59,7.82]
[1756543727097,2.45880648,203.67,203.59,7.82]
[1756543727303,2.45880648,203.66,203.59,7.82]
[1756543727598,2.45880648,203.65,203.59,7.82]
[1756543727803,0.12,203.69,203.59,7.82]
[1756543728105,2.45840784,203.68,203.59,7.82]
[1756543728297,2.45840784,203.67,203.59,7.82]
[1756543728502,2.45840784,203.66,203.59,7.82]
[1756543728806,0.12,203.69,203.6,4.42]
[1756543729005,2.45788481,203.68,203.6,4.42]
[1756543729208,2.45788481,203.67,203.6,4.42]
[1756543729505,2.45788481,203.66,203.6,4.42]
[1756543729701,0.12,203.69,203.6,4.42]
[1756543729906,2.45769841,203.68,203.6,4.42]
[1756543730105,2.45769841,203.67,203.6,4.42]
[1756543730406,2.45769841,203.66,203.6,4.42]
[1756543730606,0.12,203.69,203.6,4.42]
[1756543730811,2.45747654,203.68,203.6,4.42]
[1756543731106,2.45747654,203.67,203.6,4.42]
[1756543731311,2.45747654,203.66,203.6,4.42]
[1756543731504,0.12,203.69,203.61,7.82]
[1756543731706,2.45733837,203.68,203.61,7.82]
[1756543731905,2.45733837,203.67,203.61,7.82]
[1756543732208,2.45733837,203.66,203.61,7.82]
[1756543732507,0.12,203.69,203.61,7.82]
[1756543732708,2.45768382,203.68,203.61,7.82]
[1756543732909,0.12,203.69,203.61,7.82]
[1756543732910,2.45768382,203.67,203.61,7.82]
[1756543733103,2.45768382,203.66,203.61,7.82]
[1756543733304,0.12,203.69,203.61,7.82]
[1756543733504,2.45763239,203.68,203.61,7.82]
[1756543733705,2.45763239,203.67,203.61,7.82]
[1756543733900,2.45763239,203.66,203.61,7.82]
[1756543734104,0.12,203.69,203.61,7.82]
[1756543734306,2.45763272,203.68,203.61,7.82]
[1756543734608,2.45734191,203.67,203.61,7.82]
[1756543734809,2.45734191,203.66,203.61,7.82]
[1756543735004,0.12,203.69,203.61,7.82]
[1756543735212,0.12,203.66,203.55,7.82]
[1756543735400,2.45734191,203.65,203.55,7.82]
[1756543735605,0.12,203.66,203.55,7.82]
[1756543735810,2.45675929,203.65,203.55,7.82]
[1756543736104,2.45675929,203.64,203.55,7.82]
[1756543736310,0.12,203.66,203.55,7.82]
[1756543736510,2.45616459,203.65,203.55,7.82]
[1756543736811,2.45616459,203.64,203.55,7.82]
[1756543737008,0.12,203.66,203.55,7.82]
[1756543737204,2.45611765,203.65,203.55,7.82]
[1756543737405,2.45611765,203.64,203.55,7.82]
[1756543737605,0.12,203.66,203.57,7.82]
[1756543737811,5.31876468,203.65,203.57,7.82]
[1756543738107,2.5760954,203.64,203.57,7.82]
[1756543738309,5.43786848,203.63,203.55,7.82]
[1756543738510,2.4551992,203.62,203.55,7.82]
[1756543738709,2.4551992,203.61,203.55,7.82]
[1756543738910,2.98266928,203.63,203.55,7.82]
[1756543739211,2.45512179,203.62,203.55,7.82]
[1756543739411,2.98266928,203.63,203.55,7.82]
[1756543739611,2.45423042,203.62,203.55,7.82]
[1756543739809,5.43791049,203.73,203.55,7.82]
[1756543740010,0.12,203.65,203.55,7.82]
[1756543740306,2.45440547,203.64,203.55,7.82]
[1756543740901,2.45440547,203.64,203.56,4.4208]
[1756543741109,2.45440547,203.64,203.57,7.82]
[1756543741707,2.45440547,203.64,203.58,4.4204]
[1756543741903,2.86266928,203.68,203.59,7.82]
[1756543742106,2.45446273,203.67,203.59,7.82]
[1756543742306,2.45446273,203.66,203.59,7.82]
[1756543742506,2.98266928,203.69,203.59,7.82]
[1756543742701,2.45434728,203.68,203.59,7.82]
[1756543742906,2.45434728,203.67,203.59,7.82]
[1756543743210,2.45434728,203.66,203.59,7.82]
[1756543743403,2.98266928,203.69,203.59,7.82]
[1756543743602,2.45427415,203.68,203.59,7.82]
[1756543743811,2.45427415,203.67,203.6,4.42]
[1756543744205,2.4543615,203.66,203.6,4.42]
[1756543744401,2.98266928,203.69,203.6,4.42]
[1756543744606,2.45434634,203.68,203.6,4.42]
[1756543744804,0.12,203.69,203.61,7.82]
[1756543745014,2.4544888,203.68,203.61,7.82]
[1756543745214,0.12,203.69,203.61,7.82]
[1756543745413,2.45458129,203.68,203.61,7.82]
[1756543745611,0.12,203.69,203.61,7.82]
[1756543745813,2.45458309,203.68,203.61,7.82]
[1756543746013,0.12,203.69,203.61,7.82]
[1756543746316,2.45458211,203.68,203.61,7.82]
[1756543746515,0.12,203.69,203.61,7.82]
[1756543746716,2.45465157,203.68,203.61,7.82]
[1756543747016,0.12,203.73,203.65,7.82]
[1756543747316,2.45500713,203.72,203.65,7.82]
[1756543747615,2.45500713,203.71,203.65,7.82]
[1756543747916,2.45500713,203.7,203.64,7.5]
[1756543748109,2.98266928,203.73,203.64,7.5]
[1756543748309,2.4551438,203.72,203.64,7.5]
[1756543748509,2.4551438,203.71,203.64,7.5]
[1756543748715,2.4551438,203.7,203.64,7.5]
[1756543748917,0.12,203.73,203.64,7.5]
[1756543749113,2.45528747,203.72,203.64,7.5]
[1756543749308,2.45528747,203.71,203.65,4.4189]
[1756543749510,2.45528747,203.7,203.65,4.4189]
[1756543749717,0.13,203.67,203.57,7.5]
[1756543749914,0.13,203.64,203.57,7.5]
[1756543750513,2.4542343,203.63,203.57,7.5]
[1756543750817,0.13,203.64,203.57,7.5]
[1756543751709,2.45404064,203.63,203.57,7.5]
[1756543751914,2.86266928,203.67,203.57,7.5]
[1756543752114,2.45445104,203.66,203.57,7.5]
[1756543752316,2.86266928,203.68,203.57,7.5]
[1756543752511,2.45479164,203.67,203.59,7.5]
[1756543752816,2.45479164,203.66,203.59,7.5]
[1756543753012,0.13,203.69,203.59,7.5]
[1756543753213,2.86266928,203.67,203.59,7.5]
[1756543753418,2.45498277,203.66,203.59,7.5]
[1756543753616,2.86266928,203.62,203.51,8.1920948]
[1756543753816,2.86266928,203.59,203.53,7.5]
[1756543754818,2.45453765,203.58,203.53,7.5]
[1756543755018,2.86266928,203.59,203.53,7.5]
[1756543755218,2.45453765,203.58,203.53,7.5]
[1756543755420,2.86266928,203.59,203.53,7.5]
[1756543756325,2.58458425,203.58,203.53,7.5]
[1756543756524,0.13,203.58,203.53,7.5]
[1756543757523,2.45324559,203.57,203.48,7.5]
[1756543757722,0.13,203.58,203.48,10.36266928]
[1756543757920,0.13,203.58,203.49,7.5]
[1756543758631,2.86266928,203.56,203.49,7.5]
[1756543761130,2.45115481,203.55,203.49,7.5]
[1756543761326,2.86266928,203.59,203.49,7.5]
[1756543761534,2.45143717,203.58,203.49,7.5]
[1756543761734,2.45143717,203.57,203.49,7.5]
[1756543762033,2.86266928,203.59,203.49,7.5]
[1756543762234,2.45146372,203.58,203.49,7.5]
[1756543762433,2.45146372,203.57,203.49,7.5]
[1756543762730,2.86266928,203.59,203.5,4.4221]
[1756543762936,2.45247666,203.58,203.51,7.5]
[1756543763126,2.86266928,203.59,203.51,7.5]
[1756543763331,2.45339533,203.58,203.51,7.5]
[1756543763633,0.14,203.65,203.53,7.5]
[1756543763832,5.31622245,203.64,203.54,7.5]
[1756543764028,2.45355317,203.63,203.54,7.5]
[1756543764234,2.45355317,203.63,203.54,11.9213]
[1756543764536,3.00266928,203.58,203.47,7.5]
[1756543764731,2.45355317,203.57,203.47,7.5]
[1756543764937,2.45355317,203.56,203.47,7.5]
[1756543765136,2.86266928,203.58,203.47,7.5]
[1756543765333,2.45345709,203.57,203.47,7.5]
[1756543765534,2.86266928,203.58,203.49,2.86266928]
[1756543765739,2.45337766,203.57,203.5,7.5]
[1756543765938,2.86266928,203.58,203.5,7.5]
[1756543766241,2.45337887,203.57,203.5,7.5]
[1756543766435,2.45414815,203.56,203.5,7.5]
[1756543766635,2.86266928,203.58,203.5,7.5]
[1756543766836,2.45437723,203.57,203.5,7.5]
[1756543767038,2.86266928,203.58,203.5,7.5]
[1756543767242,2.45442661,203.57,203.5,7.5]
[1756543767431,2.86266928,203.58,203.5,7.5]
[1756543767738,2.45358847,203.57,203.5,7.5]
[1756543767938,2.86266928,203.58,203.5,7.5]
[1756543768144,2.45358847,203.57,203.5,7.5]
[1756543768334,2.86266928,203.58,203.5,7.5]
[1756543768536,2.45366879,203.57,203.5,7.5]
[1756543768736,3.00266928,203.61,203.5,7.5]
[1756543768940,2.45366933,203.6,203.5,7.5]
[1756543769141,2.45366933,203.59,203.5,7.5]
[1756543769438,2.45366933,203.58,203.5,7.5]
[1756543769638,2.45366933,203.57,203.5,7.5]
[1756543769838,2.45319194,203.56,203.5,7.5]
[1756543770033,2.86266928,203.6,203.5,7.5]
[1756543770231,2.45320288,203.59,203.5,7.5]
[1756543770435,2.45320288,203.58,203.5,11.9221]
[1756543770742,2.86266928,203.6,203.51,7.5]
[1756543770939,2.45325283,203.59,203.51,7.5]
[1756543771138,2.86266928,203.6,203.51,7.5]
[1756543771339,2.45320348,203.59,203.52,2.86266928]
[1756543771538,0.14,203.61,203.51,10.36266928]
[1756543771740,2.45306802,203.6,203.52,4.4217]
[1756543771948,0.14,203.61,203.53,7.5]
[1756543772235,2.86266928,203.63,203.54,7.28396928]
[1756543772439,2.45355721,203.62,203.55,7.5]
[1756543772634,2.45355721,203.61,203.55,7.5]
[1756543772841,0.14,203.65,203.55,7.5]
[1756543773042,2.45334491,203.64,203.55,7.5]
[1756543773243,2.45334491,203.63,203.55,7.5]
[1756543773438,2.45334491,203.62,203.55,7.5]
[1756543773639,0.14,203.65,203.55,7.5]
[1756543773640,2.45334491,203.61,203.55,7.5]
[1756543773838,0.14,203.65,203.55,7.5]
[1756543774039,2.4535706,203.64,203.57,7.5]
[1756543774243,2.4535706,203.63,203.57,7.5]
[1756543774439,2.4535706,203.62,203.57,7.5]
[1756543774741,2.5935706,203.61,203.57,7.5]
[1756543774940,2.5922165,203.6,203.52,7.5]
[1756543775134,2.4522165,203.59,203.54,2.86266928]
[1756543775334,0.14,203.63,203.55,7.5]
[1756543775642,5.45444906,203.62,203.51,10.36266928]
[1756543775841,2.45177978,203.61,203.51,10.36266928]
[1756543776138,2.45177978,203.61,203.51,2.86266928]
[1756543776335,2.45177978,203.61,203.52,7.5]
[1756543776842,2.45177978,203.61,203.52,11.9217]
[1756543778050,0.14,203.62,203.55,7.79]